bitfinex/quotes_ETHUSD_20250323
["timestamp","ask_amount","ask_price","bid_price","bid_amount"]
[1742701368724,4.97464,2010.2,2009.8,0.55]
[1742701368941,4.97492,2010.1,2009.9,26.313]
[1742701369251,9.95003,2010.1,2009.9,26.313]
[1742701369430,4.97512,2010.0,2009.9,26.313]
[1742701371061,10.43697867,2010.0,2009.9,26.313]
[1742701371370,9.98344633,2010.0,2009.9,26.313]
[1742701381071,9.98344633,2010.0,2009.3,26.306]
[1742701381072,4.97681,2009.4,2009.3,26.306]
[1742701381275,5.972138,2009.4,2009.3,26.306]
[1742701386110,5.79487,2009.5,2009.3,26.306]
[1742701386305,4.97598,2009.7,2009.3,26.306]
[1742701386479,4.97633,2009.6,2009.3,26.306]
[1742701386882,9.95266,2009.6,2009.3,26.306]
[1742701387081,4.97642,2009.5,2009.3,26.306]
[1742701387277,4.97633,2009.6,2009.3,26.306]
[1742701387493,9.95256,2009.6,2009.3,26.306]
[1742701387697,4.97623,2009.6,2009.3,26.306]
[1742701388012,4.97617,2009.6,2009.3,26.306]
[1742701388193,4.9761,2009.7,2009.4,0.55]
[1742701388993,9.95208,2009.7,2009.4,0.55]
[1742701389201,4.97598,2009.7,2009.4,0.55]
[1742701389370,9.95204,2009.7,2009.4,0.55]
[1742701389573,4.97598,2009.7,2009.4,0.55]
[1742701390620,9.95195,2009.7,2009.4,0.55]
[1742701390786,4.97597,2009.7,2009.4,0.55]
[1742701391709,4.9762,2009.6,2009.3,26.306]
[1742701392004,4.97597,2009.7,2009.4,0.55]
[1742701392205,4.97565,2009.8,2009.4,0.55]
[1742701392773,9.95143,2009.8,2009.4,0.55]
[1742701392975,9.95143,2009.8,2009.5,26.307]
[1742701393376,4.97591,2009.7,2009.5,26.307]
[1742701394810,9.95145,2009.8,2009.5,26.307]
[1742701395599,4.97586,2009.7,2009.5,26.307]
[1742701395800,4.97611,2009.6,2009.5,26.307]
[1742701397616,5.76821,2009.6,2009.5,26.307]
[1742701398415,9.95913633,2009.6,2009.5,26.307]
[1742701404227,12.95913633,2009.6,2009.5,26.307]
[1742701404408,15.3597225,2009.6,2009.5,26.307]
[1742701407437,4.97708,2009.3,2009.0,26.309]
[1742701407726,4.97735,2009.1,2009.0,26.309]
[1742701409133,7.97735,2009.1,2009.0,26.309]
[1742701409338,10.26879663,2009.1,2009.0,26.309]
[1742701409834,4.97889,2008.5,2008.4,26.31]
[1742701410743,4.97838,2008.7,2008.4,26.31]
[1742701411040,4.97849,2008.7,2008.4,26.31]
[1742701411211,4.97859,2008.6,2008.4,26.31]
[1742701411413,4.97849,2008.7,2008.4,26.31]
[1742701411608,4.97802,2008.9,2008.5,0.55]
[1742701411609,4.978,2008.9,2008.5,0.55]
[1742701411838,4.978,2008.9,2008.4,31.28886]
[1742701411839,6.2025173,2008.9,2008.4,26.31]
[1742701412011,4.97875,2008.6,2008.4,26.31]
[1742701412734,4.97834,2008.7,2008.4,26.31]
[1742701413513,9.95682,2008.7,2008.4,26.31]
[1742701413716,4.97834,2008.7,2008.4,26.31]
[1742701414035,4.97815,2008.8,2008.5,0.55]
[1742701416142,9.95647,2008.8,2008.5,0.55]
[1742701416516,4.97836,2008.7,2008.5,0.55]
[1742701416714,4.97859,2008.6,2008.5,0.55]
[1742701417349,9.95688,2008.7,2008.5,0.55]
[1742701417544,4.97836,2008.7,2008.5,0.55]
[1742701417709,4.97813,2008.8,2008.5,0.55]
[1742701418138,11.1807273,2008.9,2008.5,5.52883]
[1742701418307,4.97836,2008.7,2008.5,0.55]
[1742701418903,9.9564,2008.8,2008.5,0.55]
[1742701419108,9.95635,2008.8,2008.5,0.55]
[1742701419333,9.95635,2008.8,2008.4,26.31]
[1742701419537,4.97835,2008.7,2008.4,26.31]
[1742701419743,1.53719436,2008.8,2008.5,0.55]
[1742701419953,4.97802,2008.9,2008.5,5.52874]
[1742701420244,9.9561,2008.9,2008.5,0.55]
[1742701420924,4.97811,2008.8,2008.5,0.55]
[1742701421114,9.95644,2008.8,2008.5,0.55]
[1742701421314,4.97811,2008.8,2008.5,0.55]
[1742701421918,4.97835,2008.7,2008.5,0.55]
[1742701423345,9.95641,2008.8,2008.5,0.55]
[1742701423547,4.97834,2008.7,2008.4,26.31]
[1742701423850,4.97834,2008.7,2008.5,26.868]
[1742701424710,4.97834,2008.7,2008.5,26.318]
[1742701424925,11.37106363,2008.8,2008.5,26.318]
[1742701425750,11.37109363,2008.8,2008.5,26.318]
[1742701425936,4.97811,2008.8,2008.5,26.318]
[1742701426509,9.95633,2008.8,2008.5,26.318]
[1742701426710,4.97811,2008.8,2008.5,26.318]
[1742701426911,9.95634,2008.8,2008.5,26.318]
[1742701427148,4.97787,2008.9,2008.6,0.55]
[1742701428543,5.76374,2009.1,2008.7,26.318]
[1742701428849,4.9777,2009.0,2008.7,26.318]
[1742701435070,4.9777,2009.0,2008.8,0.46390993]
[1742701435664,10.7844,2009.3,2008.8,0.46390993]
[1742701435959,4.97717,2009.2,2008.9,0.55]
[1742701436163,9.9545,2009.2,2008.9,0.55]
[1742701436348,4.97737,2009.1,2008.8,0.55]
[1742701437265,4.97769,2009.0,2008.8,0.55]
[1742701438367,4.97769,2009.0,2008.7,26.318]
[1742701439531,4.97769,2009.0,2008.8,0.46407022]
[1742701440456,4.97784,2008.9,2008.8,0.46407022]
[1742701440758,4.97769,2009.0,2008.8,0.46407022]
[1742701441658,4.97769,2009.0,2008.7,26.318]
[1742701442365,4.97799,2008.9,2008.7,26.318]
[1742701442552,4.97809,2008.8,2008.7,26.318]
[1742701442857,4.97809,2008.8,2008.7,26.868]
[1742701443222,4.97809,2008.8,2008.7,26.318]
[1742701445270,6.47288063,2008.8,2008.7,26.318]
[1742701450985,0.8009,2009.4,2008.7,26.318]
[1742701451177,4.9774,2009.1,2008.8,0.55]
[1742701451497,4.97725,2009.2,2008.8,0.55]
[1742701452789,9.95457,2009.2,2008.8,0.55]
[1742701453889,4.97725,2009.2,2008.8,0.55]
[1742701454192,4.97685,2009.3,2008.8,5.52808]
[1742701454893,4.97685,2009.3,2008.8,10.50607]
[1742701455190,4.97685,2009.3,2008.9,0.4637538]
[1742701456270,4.97685,2009.3,2008.9,4.97782]
[1742701457692,0.7889,2009.5,2009.1,0.55]
[1742701457912,4.97655,2009.5,2009.1,0.55]
[1742701458084,4.97662,2009.4,2009.1,0.55]
[1742701458718,4.97631,2009.6,2009.1,5.52733]
[1742701458922,9.95255,2009.6,2009.1,5.52725]
[1742701459217,4.97641,2009.5,2009.1,5.52725]
[1742701459606,11.31318931,2009.6,2009.1,5.52718]
[1742701460013,6.33682931,2009.6,2009.2,0.04976641]
[1742701460316,9.16672633,2009.8,2009.4,4.97659]
[1742701460523,4.97596,2009.7,2009.3,0.55]
[1742701463807,9.95205,2009.7,2009.3,0.55]
[1742701463994,4.97618,2009.6,2009.4,26.312]
[1742701464194,5.76526,2009.5,2009.4,26.312]
[1742701464429,4.97636,2009.5,2009.4,26.312]
[1742701465994,4.97618,2009.6,2009.4,26.312]
[1742701466931,4.97593,2009.7,2009.4,26.312]
[1742701467999,4.97626,2009.6,2009.4,26.312]
[1742701468520,4.97636,2009.5,2009.4,26.312]
[1742701470646,5.76926,2009.6,2009.4,26.312]
[1742701471248,4.97626,2009.6,2009.4,26.312]
[1742701474051,4.97563,2009.8,2009.4,26.312]
[1742701474252,4.97591,2009.7,2009.4,26.312]
[1742701475256,4.97563,2009.8,2009.4,26.312]
[1742701476859,4.97525,2010.0,2009.5,5.52635]
[1742701478526,9.16555633,2010.2,2009.7,5.52584]
[1742701478726,4.97498,2010.1,2009.7,0.55]
[1742701478959,10.65884996,2010.2,2009.7,5.52585]
[1742701479259,9.94915,2010.3,2009.8,4.97538]
[1742701479554,4.97455,2010.3,2009.9,0.55]
[1742701479736,4.97455,2010.3,2009.9,5.52534]
[1742701480137,4.97427,2010.4,2009.9,5.52534]
[1742701482462,9.94862,2010.4,2009.9,5.52534]
[1742701483767,4.97442,2010.3,2009.9,0.55]
[1742701484260,4.97442,2010.3,2009.9,5.52533]
[1742701485163,4.97462,2010.2,2009.7,3.46205833]
[1742701485468,4.19092633,2010.3,2009.7,0.46205833]
[1742701485469,14.14090633,2010.1,2009.7,0.46205833]
[1742701485629,4.97526,2010.0,2009.7,0.46205833]
[1742701485834,4.97548,2009.9,2009.6,0.46205833]
[1742701486230,4.9754,2009.9,2009.7,0.55]
[1742701486430,4.97567,2009.8,2009.6,0.46205833]
[1742701486661,4.97586,2009.7,2009.6,0.46205833]
[1742701487235,4.97586,2009.7,2009.5,0.46219801]
[1742701488126,4.97586,2009.7,2009.5,26.303]
[1742701488334,9.95139,2009.8,2009.5,26.303]
[1742701488755,4.97589,2009.7,2009.5,26.303]
[1742701489034,4.97567,2009.8,2009.5,26.303]
[1742701489035,4.97546,2009.9,2009.6,0.55]
[1742701489659,9.95094,2009.9,2009.6,0.55]
[1742701489848,4.97546,2009.9,2009.5,26.303]
[1742701490163,4.97572,2009.8,2009.5,26.303]
[1742701491272,4.97598,2009.7,2009.5,26.303]
[1742701491965,5.970788,2009.8,2009.5,26.303]
[1742701492136,4.97567,2009.8,2009.5,26.303]
[1742701492939,9.16649633,2009.9,2009.5,26.303]
[1742701493138,4.97564,2009.8,2009.5,26.303]
[1742701493383,14.14198633,2009.9,2009.5,26.303]
[1742701493541,9.16643633,2009.9,2009.5,26.303]
[1742701493745,6.46884563,2009.9,2009.5,26.303]
[1742701494465,1.49333563,2009.9,2009.5,26.303]
[1742701494666,0.7918,2010.2,2009.8,4.97549]
[1742701494968,5.76646,2010.2,2009.7,4.97567]
[1742701495175,5.76646,2010.2,2009.8,26.305]
[1742701495962,10.74131,2010.2,2009.8,26.305]
[1742701496166,11.8759298,2010.2,2009.8,26.805]
[1742701496569,6.9010798,2010.2,2009.8,26.805]
[1742701496775,4.97466,2010.2,2009.8,26.805]
[1742701497742,9.94952,2010.2,2009.8,26.805]
[1742701498176,4.97487,2010.1,2009.8,26.805]
[1742701498879,4.97471,2010.2,2009.8,26.805]
[1742701500276,9.94957,2010.2,2009.8,26.805]
[1742701500652,4.97471,2010.2,2009.8,26.805]
[1742701500860,4.19092633,2010.3,2009.9,0.55]
[1742701501176,9.16530633,2010.3,2009.9,0.55]
[1742701501584,4.19092633,2010.3,2009.9,0.55]
[1742701501951,9.16539633,2010.3,2009.9,0.55]
[1742701502881,4.97447,2010.3,2009.9,0.55]
[1742701504901,9.16515633,2010.4,2009.9,5.52532]
[1742701505686,9.16515633,2010.4,2009.9,5.89752184]
[1742701506005,9.16515633,2010.4,2009.9,5.89746184]
[1742701506163,4.97423,2010.4,2009.9,0.92220184]
[1742701506363,4.97423,2010.4,2010.0,0.5]
[1742701507107,9.99070633,2010.5,2010.0,0.5]
[1742701507759,9.99070633,2010.5,2010.0,5.4751]
[1742701508345,9.16480633,2010.5,2010.0,5.4751]
[1742701508941,5.79954,2010.6,2010.1,0.55]
[1742701509239,10.77337,2010.6,2010.1,0.55]
[1742701509803,4.97388,2010.5,2010.1,0.55]
[1742701513742,4.97415,2010.4,2010.1,0.55]
[1742701515825,4.97393,2010.5,2010.1,0.55]
[1742701516227,4.97393,2010.5,2010.2,26.3]
[1742701517560,4.97416,2010.4,2010.2,26.3]
[1742701518357,4.97438,2010.3,2010.2,26.3]
[1742701518557,4.9739,2010.5,2010.2,26.3]
[1742701519655,9.94802,2010.5,2010.2,26.3]
[1742701519844,4.97418,2010.4,2010.2,26.3]
[1742701520047,9.94855,2010.4,2010.2,26.3]
[1742701521028,4.97438,2010.3,2010.2,26.3]
[1742701521231,7.4871291,2010.3,2010.2,26.3]
[1742701526865,4.97418,2010.4,2010.2,26.3]
[1742701527067,9.94849,2010.4,2010.2,26.3]
[1742701527370,7.4869291,2010.4,2010.2,26.3]
[1742701527665,4.97438,2010.3,2010.2,26.3]
[1742701527967,8.88290847,2010.3,2010.2,26.3]
[1742701529141,4.97577,2009.8,2009.6,26.799]
[1742701530676,9.95162,2009.8,2009.6,26.799]
[1742701531340,4.97586,2009.7,2009.6,26.299]
[1742701533082,9.16567151,2009.7,2009.6,26.299]
[1742701533384,11.36746566,2009.7,2009.6,26.299]
[1742701534176,7.17765415,2009.7,2009.6,26.299]
[1742701534382,5.79536,2009.7,2009.6,26.299]
[1742701536792,4.65727,2009.8,2009.6,26.299]
[1742701536997,4.97537,2009.9,2009.6,26.799]
[1742701537203,4.97515,2010.0,2009.6,26.799]
[1742701537701,4.97515,2010.0,2009.6,31.77509]
[1742701537874,9.95049,2010.0,2009.6,26.799]
[1742701538071,4.97515,2010.0,2009.6,26.799]
[1742701538300,4.97492,2010.1,2009.7,5.52575]
[1742701538502,4.97492,2010.1,2009.7,0.55]
[1742701538799,4.97521,2010.0,2009.7,0.55]
[1742701539375,9.16473151,2010.1,2009.7,0.55]
[1742701539966,9.16473151,2010.1,2009.7,5.52584]
[1742701540194,9.16473151,2010.1,2009.8,0.5]
[1742701540803,14.13983151,2010.1,2009.8,0.5]
[1742701541169,9.16473151,2010.1,2009.8,0.5]
[1742701542299,14.13983151,2010.1,2009.8,0.5]
[1742701542483,4.97529,2010.0,2009.7,0.55]
[1742701543997,4.9754,2009.9,2009.7,0.55]
[1742701544795,4.9754,2009.9,2009.6,26.299]
[1742701544796,4.97586,2009.7,2009.6,26.299]
[1742701545400,9.16567151,2009.7,2009.6,26.299]
[1742701547872,10.08012873,2009.7,2009.6,26.299]
[1742701548805,10.91262873,2009.7,2009.6,26.299]
[1742701551311,4.97712,2009.2,2009.0,26.305]
[1742701553121,4.97689,2009.3,2009.0,26.305]
[1742701553815,9.16646151,2009.4,2009.0,26.305]
[1742701554016,4.97665,2009.4,2009.1,1.05]
[1742701554222,4.97636,2009.5,2009.1,1.05]
[1742701554411,4.97663,2009.4,2009.1,1.05]
[1742701555433,9.95387,2009.3,2009.1,0.55]
[1742701555634,4.97686,2009.3,2009.1,0.55]
[1742701556723,4.97686,2009.3,2009.0,26.305]
[1742701559419,4.97735,2009.1,2009.0,26.305]
[1742701562016,5.79195,2009.1,2009.0,26.305]
[1742701562633,0.8146,2008.7,2008.1,5.47977]
[1742701562841,4.97886,2008.5,2008.3,26.312]
[1742701563136,9.98275151,2008.7,2008.3,26.312]
[1742701563137,4.97864,2008.6,2008.3,26.312]
[1742701564133,4.97813,2008.8,2008.4,5.47884]
[1742701564537,4.97813,2008.8,2008.5,0.55]
[1742701565917,4.97785,2008.9,2008.5,5.52879]
[1742701566117,9.95593,2008.9,2008.5,0.55]
[1742701566340,9.95593,2008.9,2008.5,5.52879]
[1742701566538,4.97785,2008.9,2008.5,5.52879]
[1742701567041,4.97785,2008.9,2008.5,0.55]
[1742701567243,4.97815,2008.8,2008.5,0.55]
[1742701568339,4.97836,2008.7,2008.4,3.5]
[1742701568520,4.97865,2008.6,2008.4,3.5]
[1742701568723,4.97865,2008.6,2008.4,0.55]
[1742701569038,4.97865,2008.6,2008.3,26.312]
[1742701569039,4.97883,2008.5,2008.3,26.312]
[1742701569202,4.97859,2008.6,2008.3,26.312]
[1742701569408,9.9574,2008.6,2008.3,26.312]
[1742701570609,4.97888,2008.5,2008.3,26.312]
[1742701571255,9.95737,2008.6,2008.3,26.312]
[1742701571433,4.97828,2008.8,2008.3,31.29133]
[1742701571747,4.97828,2008.8,2008.5,0.5]
[1742701571913,4.9785,2008.7,2008.4,0.55]
[1742701572116,4.97859,2008.6,2008.4,0.55]
[1742701573048,9.95742,2008.6,2008.4,0.55]
[1742701573536,4.97887,2008.5,2008.3,26.312]
[1742701575253,9.95732,2008.6,2008.3,26.312]
[1742701575437,4.97859,2008.6,2008.3,26.312]
[1742701576250,9.95737,2008.6,2008.3,26.312]
[1742701576764,4.9789,2008.5,2008.3,26.312]
[1742701576937,4.97908,2008.4,2008.3,26.312]
[1742701578468,4.9789,2008.5,2008.3,26.312]
[1742701578663,4.97864,2008.6,2008.3,26.312]
[1742701579435,9.95747,2008.6,2008.3,26.312]
[1742701579635,4.97864,2008.6,2008.3,26.312]
[1742701579842,4.97894,2008.5,2008.3,26.312]
[1742701580067,9.95802,2008.5,2008.3,26.312]
[1742701580269,4.97894,2008.5,2008.3,26.312]
[1742701582869,9.95789,2008.5,2008.3,26.312]
[1742701583068,4.97894,2008.5,2008.3,26.312]
[1742701583579,9.95793,2008.5,2008.3,26.312]
[1742701583973,4.97894,2008.5,2008.3,26.312]
[1742701585672,0.8146,2008.7,2008.4,0.55]
[1742701585872,4.97814,2008.8,2008.4,1.05]
[1742701586275,4.97834,2008.7,2008.4,1.05]
[1742701586449,9.95692,2008.7,2008.4,1.05]
[1742701587051,4.97859,2008.6,2008.4,1.05]
[1742701591380,4.97859,2008.6,2008.4,0.55]
[1742701592278,4.97834,2008.7,2008.4,0.55]
[1742701592448,9.9568,2008.7,2008.4,0.55]
[1742701593965,4.97863,2008.6,2008.4,0.55]
[1742701594170,5.75553,2008.6,2008.4,0.55]
[1742701594565,4.97904,2008.5,2008.3,26.312]
[1742701595577,4.97903,2008.5,2008.3,26.312]
[1742701596261,9.95807,2008.5,2008.3,26.312]
[1742701596582,4.97903,2008.5,2008.3,26.312]
[1742701597583,5.75538,2008.7,2008.3,26.312]
[1742701597775,5.75538,2008.7,2008.3,31.79123]
[1742701598168,5.75477,2008.9,2008.5,4.97871]
[1742701598485,9.16616151,2009.6,2008.7,4.97812]
[1742701598486,4.97735,2009.1,2008.7,4.97812]
[1742701598686,4.97771,2009.0,2008.6,5.47858]
[1742701598986,5.75406,2009.2,2008.7,5.52821]
[1742701599188,4.97701,2009.3,2008.9,6.02774]
[1742701600268,4.97701,2009.3,2008.9,6.07751348]
[1742701600468,4.97701,2009.3,2008.9,6.07751342]
[1742701600679,4.97701,2009.3,2008.9,6.02774]
[1742701600872,4.97701,2009.3,2008.9,6.07751308]
[1742701601290,4.97701,2009.3,2008.9,6.02774]
[1742701601654,9.95408,2009.3,2008.9,6.02774]
[1742701601884,4.9772,2009.2,2008.9,1.05]
[1742701603954,4.9775,2009.1,2008.9,1.05]
[1742701604556,4.9775,2009.1,2008.9,0.55]
[1742701605173,4.97777,2009.0,2008.7,3.8743458]
[1742701605778,4.97777,2009.0,2008.8,26.318]
[1742701606312,4.97747,2009.1,2008.8,26.318]
[1742701607567,4.97777,2009.0,2008.8,26.318]
[1742701607767,9.95561,2009.0,2008.8,26.318]
[1742701607968,4.97784,2008.9,2008.8,26.318]
[1742701608816,4.97741,2009.1,2008.8,26.318]
[1742701609399,9.955,2009.1,2008.8,26.318]
[1742701609932,4.97766,2009.0,2008.8,26.318]
[1742701610242,4.97784,2008.9,2008.8,26.318]
[1742701612441,4.97737,2009.1,2008.8,26.318]
[1742701613952,9.95496,2009.1,2008.8,26.318]
[1742701614413,4.9776,2009.0,2008.8,26.318]
[1742701614608,4.97737,2009.1,2008.8,26.318]
[1742701614810,4.97739,2009.1,2008.9,0.5]
[1742701616244,4.9776,2009.0,2008.8,26.318]
[1742701616557,9.92435151,2008.9,2008.8,26.318]
[1742701618128,9.16765151,2008.9,2008.8,26.318]
[1742701618324,9.92435151,2008.9,2008.8,26.318]
[1742701618525,10.82466584,2009.1,2008.8,26.318]
[1742701618727,9.92400151,2009.1,2008.8,26.318]
[1742701618920,9.95508,2009.1,2008.8,26.318]
[1742701619733,4.97749,2009.1,2008.8,26.318]
[1742701620327,4.97761,2009.0,2008.8,26.318]
[1742701621540,9.95545,2009.0,2008.8,26.318]
[1742701621741,4.97761,2009.0,2008.8,26.318]
[1742701621916,4.9777,2009.0,2008.8,26.318]
[1742701624018,4.97784,2008.9,2008.8,26.318]
[1742701624935,4.97784,2008.9,2008.7,26.317]
[1742701627121,4.9777,2009.0,2008.7,26.317]
[1742701627555,4.18981151,2009.1,2008.8,4.97809]
[1742701627867,4.18981151,2009.1,2008.7,31.79514]
[1742701627868,9.16731151,2009.1,2008.7,31.79514]
[1742701628022,14.14489151,2009.1,2008.7,31.79514]
[1742701628549,4.97761,2009.0,2008.7,26.817]
[1742701628848,14.14482151,2009.1,2008.7,26.817]
[1742701629165,4.9776,2009.0,2008.7,26.817]
[1742701629527,9.16731151,2009.1,2008.7,26.817]
[1742701629753,4.97762,2009.0,2008.8,26.317]
[1742701630123,9.16731151,2009.1,2008.8,26.317]
[1742701630533,4.97713,2009.2,2008.9,0.55]
[1742701631375,9.95387,2009.3,2008.9,0.55]
[1742701632667,4.97689,2009.3,2009.0,0.5]
[1742701633882,9.95396,2009.3,2009.0,0.5]
[1742701635071,4.97689,2009.3,2009.0,0.5]
[1742701636466,4.97689,2009.3,2008.9,5.52767]
[1742701636675,9.95395,2009.3,2008.9,5.52767]
[1742701636832,4.97711,2009.2,2008.9,0.55]
[1742701639772,4.97736,2009.1,2008.8,26.817]
[1742701641579,4.97711,2009.2,2008.8,26.817]
[1742701641782,4.97711,2009.2,2008.9,0.55]
[1742701642182,4.9769,2009.3,2008.9,0.55]
[1742701642381,4.9769,2009.3,2008.9,5.52782]
[1742701642600,4.97674,2009.4,2009.1,0.55]
[1742701642750,4.97615,2009.6,2009.2,5.02666833]
[1742701642949,4.97615,2009.6,2009.3,0.5]
[1742701643147,4.97637,2009.5,2009.3,0.5]
[1742701643571,4.97615,2009.6,2009.3,0.5]
[1742701645146,9.95237,2009.6,2009.3,0.5]
[1742701645363,4.97615,2009.6,2009.3,0.5]
[1742701645587,4.97615,2009.6,2009.4,26.313]
[1742701648704,4.97592,2009.7,2009.4,26.313]
[1742701648904,5.78788,2009.8,2009.4,26.313]
[1742701648905,0.8121,2009.8,2009.4,26.313]
[1742701649124,4.97562,2009.8,2009.4,31.28938]
[1742701649708,4.97547,2009.9,2009.5,0.55]
[1742701650463,4.97562,2009.8,2009.5,0.55]
[1742701651321,9.95105,2009.9,2009.5,0.55]
[1742701651481,4.97566,2009.8,2009.5,0.55]
[1742701651896,4.97547,2009.9,2009.5,0.55]
[1742701652215,4.97547,2009.9,2009.6,0.5]
[1742701653396,9.95038,2010.0,2009.6,5.47599]
[1742701653597,9.95038,2010.0,2009.6,0.5]
[1742701654441,4.97538,2009.9,2009.6,0.5]
[1742701654815,4.97512,2010.0,2009.6,0.5]
[1742701655013,9.95043,2010.0,2009.6,0.5]
[1742701655535,9.95043,2010.0,2009.7,0.55]
[1742701655536,4.97512,2010.0,2009.7,0.55]
[1742701656976,4.97384,2010.6,2009.7,4.73981151]
[1742701657120,4.97401,2010.5,2010.0,4.97501]
[1742701657439,4.97401,2010.5,2010.1,0.5]
[1742701657643,4.97424,2010.4,2010.1,0.5]
[1742701659848,4.97424,2010.4,2010.2,26.307]
[1742701661333,4.97401,2010.5,2010.2,26.307]
[1742701661502,9.94806,2010.5,2010.2,26.307]
[1742701662628,4.97418,2010.4,2010.2,26.307]
[1742701663017,9.94814,2010.5,2010.2,26.307]
[1742701663240,4.97401,2010.5,2010.2,26.307]
[1742701663462,4.97415,2010.4,2010.2,26.307]
[1742701665146,0.823,2010.6,2010.2,26.307]
[1742701665323,4.97376,2010.6,2010.2,26.307]
[1742701665644,9.94762,2010.6,2010.2,26.307]
[1742701665841,4.97376,2010.6,2010.3,0.55]
[1742701666010,9.94758,2010.6,2010.3,0.55]
[1742701666943,4.97376,2010.6,2010.3,0.55]
[1742701667118,9.94763,2010.6,2010.3,0.55]
[1742701667517,4.97376,2010.6,2010.3,0.55]
[1742701668723,4.97391,2010.5,2010.3,0.55]
[1742701672158,4.97391,2010.5,2010.2,26.307]
[1742701672379,9.94802,2010.5,2010.2,26.307]
[1742701672550,4.97391,2010.5,2010.2,26.307]
[1742701677281,4.97425,2010.4,2010.2,26.307]
[1742701678030,4.97391,2010.5,2010.2,26.307]
[1742701678443,4.97417,2010.4,2010.2,26.307]
[1742701682662,4.97391,2010.5,2010.2,26.307]
[1742701683659,4.97364,2010.6,2010.2,31.28162]
[1742701683826,4.9739,2010.5,2010.2,26.307]
[1742701684030,4.97389,2010.5,2010.2,26.307]
[1742701684256,4.97364,2010.6,2010.2,31.28161]
[1742701684463,4.97364,2010.6,2010.2,31.28156]
[1742701685246,4.97364,2010.6,2010.2,26.307]
[1742701685429,9.94749,2010.6,2010.2,31.28159]
[1742701685637,9.94743,2010.6,2010.2,31.28159]
[1742701685858,4.97364,2010.6,2010.2,31.28159]
[1742701686835,4.97388,2010.5,2010.2,26.307]
[1742701687569,4.97364,2010.6,2010.2,26.307]
[1742701687937,4.97364,2010.6,2010.2,31.28159]
[1742701689930,4.97389,2010.5,2010.2,26.307]
[1742701690135,4.97368,2010.6,2010.2,31.28162]
[1742701691375,4.97368,2010.6,2010.3,26.297]
[1742701691538,4.97394,2010.5,2010.3,26.297]
[1742701694691,7.48644057,2010.4,2010.3,26.297]
[1742701697751,4.97394,2010.5,2010.3,26.797]
[1742701698085,9.94804,2010.5,2010.3,26.797]
[1742701698593,9.94804,2010.5,2010.3,26.297]
[1742701698898,4.97413,2010.4,2010.3,26.297]
[1742701699791,7.48644057,2010.4,2010.3,26.297]
[1742701699995,8.81075863,2010.4,2010.3,26.297]
[1742701700174,4.97413,2010.4,2010.3,26.297]
[1742701700993,7.48644057,2010.4,2010.3,26.297]
[1742701701974,8.26924057,2010.4,2010.3,26.297]
[1742701703085,9.94602226,2010.4,2010.3,26.297]
[1742701705174,14.13511452,2010.4,2010.3,26.297]
[1742701705378,4.97545,2009.9,2009.7,26.299]
[1742701707396,4.97561,2009.8,2009.7,26.299]
[1742701707591,4.97545,2009.9,2009.7,26.299]
[1742701710192,4.97512,2010.0,2009.7,26.299]
[1742701710397,9.95038,2010.0,2009.7,26.299]
[1742701713468,4.97541,2009.9,2009.7,26.299]
[1742701713669,9.951,2009.9,2009.7,26.299]
[1742701713870,4.97541,2009.9,2009.7,26.299]
[1742701714170,4.97561,2009.8,2009.7,26.299]
[1742701714921,11.26204109,2009.8,2009.7,26.299]
[1742701715223,11.26204109,2009.8,2009.3,3.0]
[1742701715224,4.97693,2009.3,2009.1,26.302]
[1742701715372,4.97693,2009.3,2009.2,3.0]
[1742701715563,4.97693,2009.3,2009.1,26.302]
[1742701715564,4.9771,2009.2,2009.1,26.302]
[1742701715773,9.95399226,2009.2,2009.1,26.302]
[1742701717999,11.94474649,2009.2,2009.1,26.302]
[1742701720369,9.95399226,2009.2,2009.1,26.302]
[1742701722588,9.16619226,2009.2,2009.1,26.302]
[1742701723871,4.9771,2009.2,2009.1,26.302]
[1742701726305,5.7934,2009.2,2009.1,26.302]
[1742701729011,8.7934,2009.2,2009.1,26.302]
[1742701729180,11.08700423,2009.2,2009.1,26.302]
[1742701729509,11.08700423,2009.2,2008.6,26.314]
[1742701729510,4.97848,2008.7,2008.6,26.314]
[1742701730210,9.16757226,2008.7,2008.6,26.314]
[1742701739014,9.95467226,2008.7,2008.6,26.314]
[1742701740118,4.97848,2008.7,2008.6,26.314]
[1742701740317,9.16757226,2008.7,2008.6,26.314]
[1742701741919,4.97814,2008.8,2008.6,26.314]
[1742701742092,4.97834,2008.7,2008.6,26.314]
[1742701749127,9.95635,2008.8,2008.6,26.314]
[1742701749422,4.97834,2008.7,2008.6,26.314]
[1742701750119,4.97814,2008.8,2008.6,26.314]
[1742701750301,4.18909226,2008.9,2008.6,26.314]
[1742701750487,14.14509226,2008.9,2008.6,26.314]